bitfinex-derivatives/quotes_ETHF0:USTF0_20250929
["timestamp","ask_amount","ask_price","bid_price","bid_amount"]
[1759104000425,9.148,4144.0,4143.9,0.00213478]
[1759104000626,9.148,4144.0,4143.9,0.82273478]
[1759104000627,3.68854766,4144.0,4143.9,0.82273478]
[1759104000826,0.3357,4144.4,4143.9,0.82273478]
[1759104001129,0.7922,4144.0,4143.9,0.46913478]
[1759104001529,1.73067876,4145.7,4144.0,2.418]
[1759104001725,0.1348,4148.0,4144.0,2.418]
[1759104001726,0.143,4145.5,4145.4,3.2078]
[1759104001926,0.9352,4145.5,4145.4,3.2078]
[1759104002429,0.7011,4145.5,4145.4,8.2078]
[1759104002625,0.4787,4145.5,4145.4,8.2078]
[1759104002830,0.48137796,4145.5,4145.4,8.2078]
[1759104003027,0.48137796,4145.5,4145.4,3.2078]
[1759104004024,0.2224,4145.5,4145.4,4.49239425]
[1759104004224,0.143,4145.5,4145.4,8.2078]
[1759104004525,0.5995,4145.5,4145.4,4.49159937]
[1759104004724,0.3771,4145.5,4145.4,4.06380396]
[1759104004921,0.143,4145.5,4145.4,8.2078]
[1759104005122,0.14507793,4145.5,4145.4,8.64181]
[1759104005322,0.60157793,4145.5,4144.9,4.06380396]
[1759104005521,0.4565,4144.6,4144.5,0.43411]
[1759104006122,0.7922,4144.6,4144.5,0.43411]
[1759104006326,0.30233,4144.6,4144.5,0.43411]
[1759104006522,0.143,4145.0,4144.9,0.43407]
[1759104006735,0.3654,4145.0,4144.9,3.64187]
[1759104006931,0.36747793,4145.5,4145.4,0.43401]
[1759104007126,0.60157793,4145.5,4145.4,0.43401]
[1759104007528,0.60157793,4145.5,4145.4,3.64181]
[1759104007828,0.60157793,4145.5,4145.4,3.2078]
[1759104008129,0.60157793,4145.5,4145.3,0.43402]
[1759104008433,0.60157793,4145.5,4145.3,3.64182]
[1759104008635,0.5581,4145.4,4145.3,3.64182]
[1759104008930,0.7922,4145.4,4145.3,3.64182]
[1759104009233,0.7922,4145.4,4145.3,0.43402]
[1759104010431,0.143,4144.5,4144.3,3.2078]
[1759104010734,0.3357,4142.4,4142.3,3.2078]
[1759104010940,0.3357,4142.4,4142.3,0.43434]
[1759104011140,0.143,4141.5,4141.2,3.2078]
[1759104011440,0.3357,4141.4,4141.2,3.2078]
[1759104011741,0.33775603,4141.4,4141.3,0.43443]
[1759104014437,0.33775603,4141.4,4141.3,0.69043]
[1759104016235,0.33775603,4141.4,4139.3,4.06380396]
[1759104016236,0.3901,4139.9,4139.3,4.06380396]
[1759104016535,0.3901,4139.4,4139.3,3.2078]
[1759104016741,0.3901,4139.4,4139.2,0.69166]
[1759104017042,0.5523,4139.0,4138.9,0.43469]
[1759104017238,0.5523,4139.0,4138.9,0.69474221]
[1759104017841,0.5523,4139.0,4138.9,0.43774221]
[1759104018040,0.5523,4139.0,4138.9,0.69474221]
[1759104018439,0.1622,4140.0,4139.9,0.43459]
[1759104018837,0.1622,4140.0,4139.9,0.69159]
[1759104019535,0.1622,4140.0,4139.9,0.43459]
[1759104019742,0.1622,4140.0,4139.9,0.69159]
[1759104020455,0.1622,4140.5,4140.4,0.43454]
[1759104020741,0.5523,4140.5,4140.4,0.43454]
[1759104021242,0.5523,4140.5,4140.3,0.257]
[1759104021442,0.1622,4140.0,4139.7,3.2078]
[1759104021644,0.3901,4139.9,4139.8,0.4346]
[1759104021836,0.3901,4139.9,4139.8,0.6916]
[1759104022546,3.2078,4140.4,4140.2,0.43456]
[1759104022547,0.3901,4140.3,4140.2,0.43456]
[1759104022750,0.1622,4140.5,4140.4,0.43454]
[1759104022947,0.5523,4140.5,4140.4,0.43454]
[1759104023449,0.5523,4140.5,4140.4,0.69154]
[1759104024044,0.5523,4140.5,4140.4,0.43454]
[1759104024242,3.2078,4140.9,4140.8,0.4345]
[1759104024445,3.2078,4140.9,4140.7,0.257]
[1759104024647,3.2078,4140.9,4140.7,0.6915]
[1759104024948,0.3814,4140.8,4140.7,0.6915]
[1759104025646,0.1622,4141.0,4140.9,0.43449]
[1759104025946,0.5436,4141.0,4140.9,0.43449]
[1759104026449,0.5436,4141.0,4140.9,0.69149]
[1759104026646,3.20985603,4141.4,4141.3,0.43445]
[1759104026846,3.20985603,4141.4,4141.3,0.69045]
[1759104027051,3.20985603,4141.4,4141.3,0.43445]
[1759104027245,3.59125603,4141.4,4141.3,0.69045]
[1759104027449,0.38345603,4141.4,4141.3,0.69045]
[1759104030046,0.162,4140.5,4140.3,0.43455]
[1759104030248,0.3814,4140.4,4140.3,0.43455]
[1759104030450,0.3814,4140.4,4140.3,0.69155]
[1759104030954,0.3814,4140.4,4140.3,0.43455]
[1759104031253,0.3814,4140.4,4140.3,0.69055]
[1759104031453,0.3814,4140.4,4140.3,0.43455]
[1759104031654,0.3814,4140.4,4140.3,0.69055]
[1759104032057,0.3814,4140.4,4140.3,0.43455]
[1759104032256,0.3814,4140.4,4140.3,0.69055]
[1759104032654,0.3814,4140.4,4140.0,3.2078]
[1759104032853,0.162,4140.5,4140.1,0.69057]
[1759104033354,0.3814,4140.4,4140.1,0.256]
[1759104033546,0.162,4139.5,4139.4,3.64245]
[1759104033750,0.162,4139.5,4139.4,3.89845]
[1759104033751,0.5434,4139.5,4139.4,3.89845]
[1759104034050,0.5434,4139.5,4139.4,0.43465]
[1759104034256,0.5434,4139.0,4138.9,3.21085221]
[1759104034648,0.162,4139.5,4138.9,3.21085221]
[1759104034849,0.3814,4139.8,4139.6,0.43462]
[1759104035148,0.3814,4139.8,4139.7,0.256]
[1759104036849,0.162,4139.5,4138.9,3.21085221]
[1759104037153,0.162,4139.5,4139.0,0.256]
[1759104037355,0.5434,4139.0,4138.9,3.64555221]
[1759104037554,0.5434,4139.0,4138.9,3.90155221]
[1759104038752,0.5434,4139.0,4138.9,3.64555221]
[1759104038951,0.8026,4139.0,4138.9,3.64555221]
[1759104039151,0.8026,4139.0,4138.9,3.90155221]
[1759104039956,0.8026,4139.0,4138.9,3.64555221]
[1759104040353,0.8026,4139.0,4138.9,3.90155221]
[1759104040553,0.5434,4139.0,4138.9,3.90155221]
[1759104041246,0.8026,4139.0,4138.9,3.90155221]
[1759104042060,0.5434,4139.0,4138.9,3.90155221]
[1759104042261,0.4212,4139.5,4139.4,0.43465]
[1759104042557,0.6732,4139.5,4139.4,0.43465]
[1759104042755,0.6732,4139.5,4139.4,0.256]
[1759104042954,0.6732,4139.5,4138.9,3.21085221]
[1759104042955,1.0546,4139.0,4138.9,3.21085221]
[1759104043255,1.0546,4139.0,4138.9,3.46685221]
[1759104043663,0.5434,4139.0,4138.9,3.46685221]
[1759104045858,0.3814,4139.4,4139.0,1.08673]
[1759104046165,0.6406,4139.4,4139.3,0.43466]
[1759104046352,0.6406,4139.4,4139.3,0.69066]
[1759104046951,0.3814,4139.4,4139.3,0.69066]
[1759104047155,0.162,4139.5,4139.3,0.69066]
[1759104047359,0.3814,4139.4,4139.3,0.69066]
[1759104048261,0.3814,4139.4,4139.3,0.43466]
[1759104048456,0.3814,4139.4,4139.3,0.68966]
[1759104049160,0.3814,4139.8,4139.7,0.43461]
[1759104049367,3.3698,4140.0,4139.9,0.43459]
[1759104049663,4.2624,4140.0,4139.9,0.43459]
[1759104050060,1.0546,4140.0,4139.9,0.68959]
[1759104050257,0.8026,4140.0,4139.9,0.68959]
[1759104050865,1.0546,4140.0,4139.9,0.68959]
[1759104051459,0.8926,4139.7,4139.6,0.43462]
[1759104051664,0.8926,4139.7,4139.6,0.68962]
[1759104053068,0.8926,4139.7,4139.5,0.43463]
[1759104053267,0.8926,4139.7,4139.6,0.255]
[1759104053761,0.8794,4139.1,4139.0,3.2078]
[1759104053960,0.6314,4139.1,4139.0,3.89749]
[1759104055070,0.8794,4139.1,4139.0,3.4628]
[1759104055562,0.8794,4139.1,4139.0,3.2078]
[1759104055768,0.8794,4139.1,4139.0,3.4628]
[1759104056170,0.8794,4139.1,4139.0,3.2078]
[1759104056469,0.8794,4139.1,4139.0,3.4628]
[1759104058061,0.6314,4139.1,4139.0,3.4628]
[1759104058260,0.6314,4139.1,4139.0,3.2078]
[1759104058261,0.8794,4139.1,4139.0,3.2078]
[1759104058475,0.8794,4139.1,4139.0,3.4628]
[1759104058768,1.039,4139.0,4138.9,0.00305221]
[1759104059067,9.2468,4139.0,4138.9,0.25705221]
[1759104059573,9.2468,4139.0,4138.9,0.00305221]
[1759104060067,0.507,4138.8,4138.7,1.9127]
[1759104060272,0.8794,4138.8,4138.7,1.9127]
[1759104060570,1.039,4138.0,4137.9,3.66676714]
[1759104060773,1.039,4138.0,4137.9,4.18936714]
[1759104060975,1.039,4138.0,4137.9,4.83326714]
[1759104061270,1.04084736,4138.0,4137.9,4.83531885]
[1759104061470,1.04084736,4138.0,4137.9,3.66881885]
[1759104061765,1.04084736,4138.0,4137.9,4.19141885]
[1759104061967,1.04084736,4138.0,4137.9,4.58371885]
[1759104062168,0.00184736,4138.0,4137.9,4.83531885]
[1759104063058,0.88124736,4138.0,4137.9,4.83531885]
[1759104063262,0.88124736,4138.0,4137.9,4.44301885]
[1759104063263,1.04084736,4138.0,4137.9,4.44301885]
[1759104063571,1.04084736,4138.0,4137.9,4.00821885]
[1759104064265,1.04084736,4138.0,4137.9,4.40051885]
[1759104064571,1.04084736,4138.0,4137.9,0.02621885]
[1759104064572,9.24864736,4138.0,4137.9,0.02621885]
[1759104064764,9.24864736,4138.0,4137.9,0.28021885]
[1759104064965,9.24864736,4138.0,4137.9,0.02621885]
[1759104065468,8.71664736,4138.0,4137.9,0.93871885]
[1759104065673,8.71664736,4138.0,4137.9,1.37351885]
[1759104065674,0.00184736,4138.0,4137.9,1.37351885]
[1759104066168,1.04084736,4138.0,4137.9,0.54641885]
[1759104066368,1.04084736,4138.0,4137.9,0.80141885]
[1759104066759,0.88124736,4138.0,4137.9,1.19371885]
[1759104068169,0.00184736,4138.0,4137.9,1.19371885]
[1759104068373,3.3674,4139.0,4137.9,1.19371885]
[1759104068374,0.3724,4138.9,4138.0,0.1612]
[1759104068570,0.259,4138.9,4138.8,0.9125]
[1759104068763,3.4668,4139.0,4138.9,0.9125]
[1759104068968,3.2078,4139.0,4138.9,0.9125]
[1759104069169,0.6314,4139.5,4139.4,0.70325]
[1759104069370,0.26179958,4139.5,4139.4,1.20985]
[1759104069579,0.88219958,4139.5,4139.4,0.7752]
[1759104069776,0.88219958,4139.5,4139.4,1.1675]
[1759104070178,0.00279958,4139.5,4139.4,1.1675]
[1759104070477,0.00279958,4139.5,4139.4,4.3753]
[1759104073075,0.00279958,4139.5,4139.4,4.1203]
[1759104073472,0.00279958,4139.5,4139.4,4.3753]
[1759104075282,0.00279958,4139.5,4139.4,4.3743]
[1759104076080,3.2078,4140.5,4140.3,1.33845]
[1759104076283,3.2078,4140.5,4140.4,1.1579]
[1759104076578,0.2655,4140.5,4140.4,1.1579]
[1759104076983,0.26787811,4140.5,4140.4,1.1579]
[1759104077182,0.64917811,4140.5,4140.4,1.1579]
[1759104077587,0.41687811,4140.5,4140.4,0.254]
[1759104077885,0.79817811,4140.5,4140.4,0.254]
[1759104078086,1.06697811,4140.5,4140.4,0.254]
[1759104078586,0.53267811,4140.5,4140.4,0.254]
[1759104080181,0.00237811,4140.5,4140.4,5.254]
[1759104080991,0.00237811,4140.5,4140.4,5.0]
[1759104081379,0.00237811,4140.5,4140.4,5.254]
[1759104081579,0.00237811,4140.5,4140.4,42.935]
[1759104081780,0.3813,4140.4,4140.3,38.11555]
[1759104081981,0.3813,4140.4,4140.3,0.43455]
[1759104082287,0.3813,4140.4,4140.3,38.36955]
[1759104083287,0.3813,4140.4,4140.3,0.68855]
[1759104083582,0.9156,4140.4,4140.3,0.254]
[1759104086585,0.9156,4140.4,4140.2,0.43455]
[1759104086782,0.5343,4140.4,4140.0,0.8306]
[1759104086986,0.9744,4140.2,4140.1,0.43457]
[1759104087186,0.9744,4140.2,4140.1,0.68757]
[1759104087583,0.9744,4140.2,4140.1,0.253]
[1759104087887,0.9744,4140.1,4140.0,0.8306]
[1759104088088,0.9744,4140.1,4140.0,1.0836]
[1759104088788,0.4271,4140.1,4140.0,1.0836]
[1759104089090,0.6927,4140.1,4140.0,0.253]
[1759104089993,0.9744,4140.1,4140.0,0.253]
[1759104090186,0.8457,4140.0,4139.9,1.48949]
[1759104090386,1.1274,4140.0,4139.9,0.68759]
[1759104091894,0.5801,4140.0,4139.9,0.68759]
[1759104092687,5.7003,4140.0,4139.7,0.7687]
[1759104092893,0.9744,4138.6,4138.5,3.90444]
[1759104093095,0.9744,4138.6,4138.5,4.15744]
[1759104093485,0.9744,4138.6,4138.5,3.64254]
[1759104093691,0.6927,4138.1,4138.0,4.18069]
[1759104093892,0.6927,4138.1,4138.0,4.78859]
[1759104094399,0.4186,4138.5,4138.4,0.97285]
[1759104094707,0.4186,4138.5,4138.4,1.22585]
[1759104094891,0.153,4139.0,4138.9,0.4347]
[1759104094892,1.1274,4139.0,4138.9,0.4347]
[1759104095090,1.1274,4139.0,4138.9,0.6877]
[1759104095890,1.1274,4139.0,4138.0,4.49159937]
[1759104096093,0.9744,4138.7,4138.6,0.43472]
[1759104096301,0.9744,4138.7,4138.6,0.68772]
[1759104096693,0.9744,4138.7,4138.6,0.94962]
[1759104100405,0.9744,4138.7,4138.6,1.22582]
[1759104102196,0.4186,4139.0,4138.9,0.4347]
[1759104102394,3.2078,4139.1,4138.9,1.5807]
[1759104102598,3.2078,4140.2,4140.0,0.3549]
[1759104102908,0.70267811,4140.5,4140.4,0.97264]
[1759104103104,0.70267811,4140.5,4140.4,1.22564]
[1759104103493,1.12977811,4140.5,4140.4,1.22564]
[1759104103699,0.84807811,4140.5,4140.4,1.22564]
[1759104103899,1.12977811,4140.5,4140.4,1.22564]
[1759104104604,0.00237811,4140.5,4140.4,1.58054]
[1759104107803,3.2078,4141.2,4140.4,1.58054]
[1759104107804,3.6349,4141.2,4141.1,1.32747]
[1759104108111,3.9005,4141.2,4141.1,1.32747]
[1759104108304,3.9005,4141.2,4141.1,1.22457]
[1759104108806,3.9005,4141.2,4141.1,1.22648494]
[1759104108807,3.90256509,4141.2,4141.1,1.22648494]
[1759104109606,4.18426509,4141.2,4141.1,0.97448494]
[1759104109805,4.18426509,4141.2,4141.1,1.22648494]
[1759104110206,0.97646509,4141.2,4141.1,1.22648494]
[1759104114616,0.97646509,4141.2,4141.1,0.95028494]
[1759104115315,0.97646509,4141.2,4141.1,0.69828494]
[1759104115612,0.97646509,4141.2,4141.1,0.95028494]
[1759104116005,0.93023184,4141.2,4141.1,1.23048494]
[1759104117509,0.93023184,4141.2,4141.1,0.68838494]
[1759104117907,0.93023184,4141.2,4141.1,0.96488494]
[1759104118102,0.93023184,4141.2,4141.1,0.43638494]
[1759104118307,0.93023184,4141.2,4141.1,0.68738494]
[1759104118515,0.93023184,4141.2,4141.1,0.96388494]
[1759104118717,0.93023184,4141.2,4141.1,1.24408494]
[1759104119713,0.64853184,4141.2,4141.1,1.63868494]
[1759104119910,0.38293184,4141.2,4141.1,1.63868494]
[1759104120216,0.66273184,4141.2,4141.1,1.63868494]
[1759104120412,0.94663184,4141.2,4141.1,1.24408494]
[1759104120612,0.94663184,4141.2,4141.1,1.63868494]
[1759104120810,0.4328,4142.0,4141.9,0.43438]
[1759104121111,1.1377,4142.0,4141.9,0.251]
[1759104121807,1.13958381,4142.0,4141.8,0.43439]
[1759104122013,0.71858381,4142.0,4141.9,0.5275]
[1759104122212,1.13958381,4142.0,4141.9,0.5275]
[1759104122919,1.13958381,4142.0,4141.9,0.251]
[1759104123414,1.13958381,4142.0,4141.8,0.43439]
[1759104123615,1.13958381,4142.0,4141.9,0.251]
[1759104123815,1.13958381,4142.0,4141.9,0.5275]
[1759104124015,1.13958381,4142.0,4141.9,0.2765]
[1759104124313,1.13958381,4142.0,4141.9,0.251]
[1759104124814,0.1571,4141.5,4141.1,3.20971494]
[1759104125115,0.9847,4141.2,4141.1,3.20971494]
[1759104125507,0.4369,4141.0,4140.9,0.7359]
[1759104125709,1.1418,4141.0,4140.9,0.7359]
[1759104125911,0.5637,4140.2,4140.1,3.4843]
[1759104126102,0.9847,4140.2,4140.1,3.7353]
[1759104126514,0.9847,4140.2,4140.1,3.73769976]
[1759104127103,0.9847,4140.2,4140.1,3.21019976]
[1759104127309,0.9847,4140.2,4140.1,3.46119976]
[1759104127503,0.9847,4140.2,4140.1,4.41249976]
[1759104127504,0.7008,4140.2,4140.1,4.41249976]
[1759104127710,0.421,4140.5,4140.4,1.38584]
[1759104128115,3.6288,4140.7,4140.6,0.43452]
[1759104128313,3.6288,4140.7,4140.6,1.24222]
[1759104128615,3.6288,4140.7,4140.6,1.63682]
[1759104128616,3.9086,4140.7,4140.6,1.63682]
[1759104128817,3.9086,4140.7,4140.6,1.24222]
[1759104129014,3.9086,4140.7,4140.6,2.10842]
[1759104129217,4.1925,4140.7,4140.6,2.10842]
[1759104129420,4.1925,4140.7,4140.6,0.8662]
[1759104129620,4.1925,4140.7,4140.6,1.1172]
[1759104130014,4.1925,4140.7,4140.6,1.3937]
[1759104130321,4.1925,4140.7,4140.6,1.1427]
[1759104130515,4.1925,4140.7,4140.6,1.3937]
[1759104130717,4.1925,4140.7,4140.6,1.1172]
[1759104131017,4.1925,4140.7,4140.6,0.8662]
[1759104131318,4.1925,4140.7,4140.6,1.1172]
[1759104131916,0.9847,4140.7,4140.6,1.3937]
[1759104132118,0.421,4140.7,4140.6,5.2676]
[1759104132309,0.1571,4141.0,4140.8,0.9166]
[1759104132310,0.4274,4140.9,4140.8,0.9166]
[1759104132612,0.4274,4140.9,4140.8,2.2079697]
[1759104133413,0.4274,4140.9,4140.8,0.9166]
[1759104133609,3.2078,4141.3,4141.2,0.2683]
[1759104133810,0.2846,4141.8,4141.7,0.5307]
[1759104134020,0.5489,4141.8,4141.7,1.64254352]
[1759104134216,0.9763,4141.8,4141.7,1.11184352]
[1759104135018,0.9763,4141.8,4141.7,1.38014352]
[1759104135218,0.712,4141.8,4141.7,2.02844352]
[1759104135920,3.2078,4141.9,4141.8,1.35099]
[1759104136122,3.2078,4141.9,4141.8,2.64246528]
[1759104136322,4.1841,4141.9,4141.8,1.21609]
[1759104137212,0.00188381,4142.0,4141.8,4.42389]
[1759104137518,0.00188381,4142.0,4141.9,0.9166]
[1759104139415,0.00188381,4142.0,4141.9,2.63390717]
[1759104140322,0.00188381,4142.0,4141.9,0.9166]
[1759104143421,0.00188381,4142.0,4141.9,1.8716]
[1759104143629,0.87648381,4142.0,4141.9,1.7357]
[1759104144529,1.14308381,4142.0,4141.9,0.955]
[1759104145524,1.14308381,4142.0,4141.9,1.205]
[1759104146722,6.14308381,4142.0,4141.9,0.955]
[1759104147216,6.14308381,4142.0,4141.9,1.205]
[1759104147532,1.14308381,4142.0,4141.9,1.205]
[1759104149317,1.14308381,4142.0,4141.9,0.955]
[1759104149521,6.14308381,4142.0,4141.9,0.955]
[1759104149722,6.14308381,4142.0,4141.9,1.205]
[1759104150931,6.14308381,4142.0,4141.9,0.955]
[1759104152518,1.14308381,4142.0,4141.9,1.2197]
[1759104152726,0.87648381,4142.0,4141.9,1.8795]
[1759104153030,6.14308381,4142.0,4141.9,0.955]
[1759104153334,6.14308381,4142.0,4141.9,1.205]
[1759104155736,6.14308381,4142.0,4141.9,0.955]
[1759104156037,6.14308381,4142.0,4141.9,1.205]
[1759104159436,1.14308381,4142.0,4141.9,1.205]
[1759104159835,6.14308381,4142.0,4141.9,0.955]
[1759104160028,6.14308381,4142.0,4141.8,0.7357]
[1759104160029,0.43438,4141.9,4141.8,0.7357]
[1759104160233,0.43441,4141.7,4141.4,0.25]
[1759104160429,3.2078,4141.5,4141.4,0.3893]
[1759104163230,3.2078,4141.5,4141.4,0.9331]
[1759104163436,3.20968381,4142.0,4141.9,0.97818]
[1759104163635,3.20968381,4142.0,4141.9,1.36748]
[1759104164739,3.20968381,4142.0,4141.9,0.3893]
[1759104164935,3.20968381,4142.0,4141.9,0.654]
[1759104165536,3.20968381,4142.0,4141.9,0.9331]
[1759104166134,3.20968381,4142.0,4141.9,0.82368]
[1759104166534,3.20968381,4142.0,4141.9,1.08838]
[1759104169243,3.20968381,4142.0,4141.9,1.36748]
[1759104174841,3.20968381,4142.0,4141.9,0.9331]
[1759104178449,3.20968381,4142.0,4141.9,0.654]
[1759104179953,3.20968381,4142.0,4141.9,0.3893]
[1759104180348,3.20968381,4142.0,4141.9,0.82368]
[1759104181547,3.20968381,4142.0,4141.9,0.3893]
[1759104182145,3.45768381,4142.0,4141.6,0.4053]
[1759104182353,0.43445,4141.4,4141.2,0.83976]
[1759104182553,4.1078,4141.3,4141.1,0.4053]
[1759104182755,4.54225,4141.3,4141.1,0.83976]
[1759104182954,4.54225,4141.3,4141.1,0.43446]
[1759104183254,4.54225,4141.3,4141.2,0.4053]
[1759104183447,0.43446,4141.2,4141.0,1.378]
[1759104183642,0.4345,4140.8,4140.7,0.4053]
[1759104183951,4.5423,4140.8,4140.7,0.4053]
[1759104184147,4.5423,4140.8,4140.5,0.16]
[1759104184351,0.43452,4140.6,4140.5,0.5653]
[1759104184747,1.33452,4140.6,4140.5,0.16]
[1759104185056,0.43454,4140.5,4140.3,0.4053]
[1759104185348,0.9,4140.4,4140.3,0.4053]
[1759104186257,1.148,4140.4,4140.3,0.4053]
[1759104188051,1.148,4140.4,4140.3,0.9343]
[1759104188052,0.9,4140.4,4140.3,0.9343]
[1759104188859,0.9,4140.4,4139.0,2.17342]
[1759104189160,3.2078,4140.1,4140.0,1.12258]
[1759104189351,3.2078,4140.1,4140.0,1.37058]
[1759104189858,3.2078,4140.1,4140.0,1.37354133]
[1759104190059,3.4661,4140.1,4140.0,1.12554133]
[1759104190263,3.4661,4140.1,4140.0,1.37354133]
[1759104190965,3.4661,4140.1,4140.0,1.77884133]
[1759104191265,3.32060376,4140.1,4140.0,1.77884133]
[1759104191458,3.06230376,4140.1,4140.0,1.77884133]
[1759104191762,0.9,4140.6,4140.5,1.36883]
[1759104191763,4.7776,4140.6,4140.5,1.36883]
[1759104191969,5.0522,4140.6,4140.5,1.36883]
[1759104194468,5.0522,4140.6,4140.5,0.2611]
[1759104194668,1.1106,4140.3,4140.0,0.00296133]
[1759104194978,4.3184,4140.1,4140.0,0.25096133]
[1759104195172,4.3184,4140.1,4140.0,0.00296133]
[1759104195581,4.3184,4140.1,4140.0,1.12006133]
[1759104195780,0.9,4140.2,4140.1,1.55167]
[1759104196281,1.688,4140.2,4140.1,1.55167]
[1759104197276,1.688,4140.2,4140.1,1.79967]
[1759104198079,0.9,4140.2,4140.1,1.79967]
[1759104198781,1.2174,4140.2,4140.1,1.79967]
[1759104198981,1.688,4140.2,4140.1,1.55167]
[1759104199281,2.0106,4140.2,4140.1,1.79967]
[1759104199579,2.0106,4140.2,4140.1,0.75597]
[1759104199776,2.0106,4140.2,4140.1,0.248]
[1759104199975,2.0106,4140.2,4140.0,0.43754133]
[1759104200179,2.0106,4140.2,4140.0,0.25096133]
[1759104200379,2.0106,4140.2,4140.0,0.00296133]
[1759104200580,2.0106,4140.2,4140.0,0.25096133]
[1759104201384,0.43457,4140.1,4140.0,0.00296133]
[1759104201578,5.2184,4140.1,4140.0,0.00296133]
[1759104203880,5.2184,4140.1,4140.0,0.31386133]
[1759104204780,5.2184,4140.1,4140.0,0.00296133]
[1759104208482,5.2184,4140.1,4140.0,1.57934133]
[1759104212279,5.2184,4140.1,4140.0,1.14476133]
[1759104212481,5.2184,4140.1,4140.0,0.64266133]
[1759104213078,5.2184,4140.1,4140.0,0.00296133]
[1759104213282,5.2184,4140.1,4140.0,0.25096133]
[1759104214085,5.2184,4140.1,4140.0,0.56186133]
[1759104214285,5.2184,4140.1,4140.0,1.39276133]
[1759104215192,4.8958,4140.1,4140.0,1.39276133]
[1759104215686,5.2372,4140.1,4140.0,1.39276133]
[1759104216683,4.4252,4140.1,4140.0,1.59286133]
[1759104216994,5.2495,4140.1,4140.0,1.39276133]
[1759104217882,5.2495,4140.1,4140.0,0.00296133]
[1759104218085,5.2495,4140.1,4140.0,0.56186133]
[1759104218285,5.2495,4140.1,4140.0,1.39276133]
[1759104220099,5.2495,4140.1,4140.0,1.82734133]
[1759104220498,5.2495,4140.1,4140.0,0.00296133]
[1759104220694,5.2495,4140.1,4140.0,0.25096133]
[1759104221402,5.2495,4140.1,4140.0,0.56186133]
[1759104221704,5.2495,4140.1,4140.0,1.39276133]
[1759104222791,5.2495,4140.1,4140.0,1.14476133]
[1759104222996,5.2495,4140.1,4140.0,0.56186133]
[1759104223598,5.2495,4140.1,4140.0,1.39276133]
[1759104225002,5.2495,4140.1,4140.0,1.14476133]
[1759104225197,5.2495,4140.1,4140.0,1.39276133]
[1759104227200,5.2495,4140.1,4140.0,0.56186133]
[1759104227904,5.2495,4140.1,4140.0,0.25096133]
[1759104228206,5.2495,4140.1,4140.0,0.00296133]
[1759104228696,5.2495,4140.1,4140.0,0.25096133]
[1759104231001,5.2495,4140.1,4140.0,0.00296133]
[1759104231198,6.16698225,4140.1,4140.0,0.00296133]
[1759104231394,1.08239,4139.9,4139.8,0.8864]
[1759104231600,2.94820225,4139.9,4139.8,0.8864]
[1759104231798,2.94820225,4139.9,4139.7,0.248]
[1759104232000,1.61361225,4139.8,4139.7,0.248]
[1759104232397,1.61361225,4139.8,4139.7,0.24997357]
[1759104232603,2.51361225,4139.8,4139.7,0.24997357]
[1759104233701,2.51361225,4139.8,4139.7,0.00197357]
[1759104234907,2.0307,4139.8,4139.7,0.00197357]
[1759104235103,2.513539,4139.8,4139.7,0.00197357]
[1759104241618,7.761539,4139.8,4139.7,0.00197357]
[1759104242110,2.761539,4139.8,4139.7,0.00197357]
[1759104242706,2.513539,4139.8,4139.7,0.00197357]
[1759104248012,3.2078,4140.7,4139.7,5.63897357]
[1759104248215,3.8487,4140.7,4140.6,1.1148]
[1759104248512,1.1137,4140.7,4140.6,0.637]
[1759104248714,1.1137,4140.7,4140.6,1.1148]
[1759104251213,1.1137,4140.7,4140.5,0.68253]
[1759104251214,3.5197,4141.2,4141.1,0.3155]
[1759104251419,3.8487,4141.2,4141.1,0.637]
[1759104251817,4.3263,4141.2,4141.1,0.3155]
[1759104252214,4.3263,4141.2,4140.9,0.4778]
[1759104252419,0.8052,4141.0,4140.9,0.8039]
[1759104252626,1.71728,4141.0,4140.6,0.463]
[1759104252824,1.1,4140.8,4140.7,0.248]
[1759104253221,1.2828,4140.5,4140.4,1.00864]
[1759104254018,1.2828,4140.5,4140.4,0.5741]
[1759104257131,1.2828,4140.5,4140.4,1.0371]
[1759104257331,1.2828,4140.5,4140.4,1.348]
[1759104258439,0.783,4140.5,4140.4,1.348]
[1759104258629,0.4776,4140.5,4140.4,1.348]
[1759104258828,3.9908,4140.7,4140.6,0.637]
[1759104259029,0.783,4140.7,4140.6,1.1]
[1759104259239,1.1,4140.7,4140.6,2.2344]
[1759104260339,0.3054,4141.0,4140.9,1.1]
[1759104260731,0.6224,4141.0,4140.9,1.1]
[1759104260930,1.1,4141.0,4140.9,1.1]
[1759104261133,1.2828,4141.0,4140.9,1.1]
[1759104261933,1.2828,4141.0,4140.9,0.637]
[1759104262237,1.2828,4141.0,4140.9,0.3261]
[1759104262746,1.2828,4141.0,4140.9,0.248]
[1759104263437,0.8052,4141.0,4140.6,0.8864]
[1759104263653,1.1,4140.7,4140.6,2.11002]
[1759104263942,1.1,4140.7,4140.6,1.64702]
[1759104264133,1.1,4140.7,4140.6,1.2125]
[1759104266844,1.1,4140.7,4140.6,1.665]
[1759104267744,1.1,4140.7,4140.6,1.2125]
[1759104268543,1.2751,4141.0,4140.9,1.0682]
[1759104269547,1.2751,4141.0,4140.9,0.6157]
[1759104269749,1.2751,4141.0,4140.9,0.3074]
[1759104270140,1.2751,4141.0,4140.7,0.248]
[1759104270345,1.70959,4141.0,4140.7,0.248]
[1759104270644,0.4703,4140.9,4140.7,0.248]
[1759104270839,0.4703,4140.7,4140.6,1.32092]
[1759104271044,1.0923,4140.7,4140.6,1.87632]
[1759104271349,1.0923,4140.7,4140.6,1.4418]
[1759104272748,1.0923,4140.7,4140.6,1.8943]
[1759104272957,1.0923,4140.7,4140.6,2.2026]